[Event "FIDE World Rapid-ch Open 2018"]
[White "Vorotnikov, Vladislav V"]
[Black "Hakobyan, Aram"]
[Site "St. Petersburg"]
[Round "10.92"]
[Annotator "ChessBase"]
[Result "0-1"]
[Date "2018.12.27"]
[WhiteElo "2417"]
[BlackElo "2545"]
[PlyCount "152"]
[TimeControl "900+10"]

1. d4 {[%emt 0:0:0]} f5 {[%emt 0:0:6]} 2. Bf4 {[%emt 0:0:8]} Nf6 {[%emt 0:0:2]
} 3. e3 {[%emt 0:0:3]} d6 {[%emt 0:0:10]} 4. c3 {[%emt 0:0:0]} g6 {[%emt 0:0:5]} 5. h4 {[%emt 0:0:10]} h6 {[%emt 0:0:27]} 6. Nd2 {[%emt 0:0:18]
} Bg7 {[%emt 0:0:2]} 7. Bd3 {[%emt 0:0:26]} e5 {[%emt 0:0:19]
} 8. Bh2 {[%emt 0:0:21]} Ng4 {[%emt 0:0:19]} 9. Bg3 {[%emt 0:1:19]} 0-0 {[%emt 0:0:4]
} 10. Ne2 {[%emt 0:0:18]} Nc6 {[%emt 0:0:21]} 11. Nf1 {[%emt 0:0:0]} Qe7 {[%emt 0:0:20]} 12. Qb3+ {[%emt 0:1:30]} Kh8 {[%emt 0:0:19]} 13. f3 {[%emt 0:0:9]} Nf6 {[%emt 0:0:9]} 14. d5 {[%emt 0:0:55]} e4 {[%emt 0:0:0]} 15. dxc6 {[%emt 0:2:4]} exd3 {[%emt 0:0:4]} 16. Nf4 {[%emt 0:0:8]
} d2+ {[%emt 0:1:38]} 17. Nxd2 {[%emt 0:1:11]} Kh7 {[%emt 0:1:29]} 18. cxb7 {[%emt 0:0:19]} Qxe3+ {[%emt 0:0:55]} 19. Kd1 {[%emt 0:0:8]} Bxb7 {[%emt 0:0:0]} 20. Re1 {[%emt 0:1:29]} Qb6 {[%emt 0:0:4]} 21. Qxb6 {[%emt 0:0:10]} axb6 {[%emt 0:0:6]} 22. Re7 {[%emt 0:0:5]} Nd5 {[%emt 0:3:58]} 23. Nxd5 {[%emt 0:0:2]
} Bxd5 {[%emt 0:0:1]} 24. Rxc7 {[%emt 0:0:2]} Bxa2 {[%emt 0:0:0]} 25. Bf2 {[%emt 0:0:39]} Kg8 {[%emt 0:0:27]} 26. b3 {[%emt 0:1:35]} Rf7 {[%emt 0:2:22]} 27. Rxf7 {[%emt 0:0:15]} Bxc3 {[%emt 0:0:4]} 28. Bxb6 {[%emt 0:0:51]
} Kxf7 {[%emt 0:0:24]} 29. Rc1 {[%emt 0:0:13]} Bxd2 {[%emt 0:0:0]} 30. Kxd2 {[%emt 0:0:1]} Bxb3 {[%emt 0:0:2]} 31. g4 {[%emt 0:0:25]} Bd5 {[%emt 0:0:10]} 32. Rc7+ {[%emt 0:0:30]} Ke6 {[%emt 0:1:6]} 33. Rg7 {[%emt 0:0:21]
} Ra2+ {[%emt 0:0:19]} 34. Ke1 {[%emt 0:0:16]} fxg4 {[%emt 0:0:0]} 35. Rxg6+ {[%emt 0:0:10]} Kf5 {[%emt 0:0:3]} 36. Rxg4 {[%emt 0:0:0]} Bxf3 {[%emt 0:0:1]} 37. Rb4 {[%emt 0:0:9]} d5 {[%emt 0:0:3]} 38. Bc7 {[%emt 0:0:15]} Be4 {[%emt 0:0:8]} 39. Bg3 {[%emt 0:0:44]} Kg4 {[%emt 0:0:0]} 40. Bf2 {[%emt 0:0:8]} h5 {[%emt 0:0:29]} 41. Rb8 {[%emt 0:0:19]} Kf5 {[%emt 0:1:4]} 42. Rf8+ {[%emt 0:0:5]} Ke6 {[%emt 0:0:14]} 43. Bd4 {[%emt 0:0:10]
} Rh2 {[%emt 0:0:10]} 44. Rf6+ {[%emt 0:0:15]} Ke7 {[%emt 0:0:0]} 45. Rf2 {[%emt 0:0:18]} Rh3 {[%emt 0:0:6]} 46. Ke2 {[%emt 0:0:7]} Kd7 {[%emt 0:0:8]} 47. Rf4 {[%emt 0:0:8]} Kc6 {[%emt 0:0:3]} 48. Bf2 {[%emt 0:0:8]
} Kb5 {[%emt 0:0:6]} 49. Rf8 {[%emt 0:0:2]} Ra3 {[%emt 0:0:0]} 50. Rb8+ {[%emt 0:0:9]} Kc6 {[%emt 0:0:5]} 51. Rb6+ {[%emt 0:0:6]} Kc7 {[%emt 0:0:3]} 52. Rh6 {[%emt 0:0:7]} Bf3+ {[%emt 0:0:6]} 53. Kd2 {[%emt 0:0:5]
} Bg4 {[%emt 0:0:2]} 54. Rf6 {[%emt 0:0:13]} Kd7 {[%emt 0:0:0]} 55. Bc5 {[%emt 0:0:21]} Ra2+ {[%emt 0:0:9]} 56. Ke3 {[%emt 0:0:22]} Re2+ {[%emt 0:1:1]} 57. Kd4 {[%emt 0:0:17]} Be6 {[%emt 0:0:4]} 58. Rf4 {[%emt 0:0:14]
} Rc2 {[%emt 0:0:3]} 59. Bf8 {[%emt 0:0:16]} Rd2+ {[%emt 0:0:0]} 60. Ke5 {[%emt 0:0:11]} Re2+ {[%emt 0:0:7]} 61. Kd4 {[%emt 0:0:17]} Kc6 {[%emt 0:0:1]} 62. Be7 {[%emt 0:0:20]} Bg4 {[%emt 0:0:13]} 63. Bg5 {[%emt 0:0:10]
} Rd2+ {[%emt 0:0:6]} 64. Kc3 {[%emt 0:0:8]} Rd1 {[%emt 0:0:0]} 65. Rd4 {[%emt 0:0:13]} Re1 {[%emt 0:0:12]} 66. Ra4 {[%emt 0:0:8]} Kd6 {[%emt 0:0:31]} 67. Kd2 {[%emt 0:0:21]} Re2+ {[%emt 0:0:9]} 68. Kd3 {[%emt 0:0:1]
} Re1 {[%emt 0:0:25]} 69. Ra8 {[%emt 0:0:13]} Rd1+ {[%emt 0:0:0]} 70. Kc2 {[%emt 0:0:5]} d4 {[%emt 0:0:3]} 71. Rd8+ {[%emt 0:0:10]} Kc5 {[%emt 0:0:15]} 72. Ra8 {[%emt 0:0:17]} Rh1 {[%emt 0:0:12]} 73. Ra5+ {[%emt 0:0:3]
} Kb4 {[%emt 0:0:11]} 74. Bd2+ {[%emt 0:0:14]} Kc4 {[%emt 0:0:0]} 75. Ra4+ {[%emt 0:0:4]} Kd5 {[%emt 0:0:1]} 76. Bg5 {[%emt 0:0:3]} Bd1+ {[%emt 0:0:2]} 0-1

[Event "FIDE World Rapid-ch Open 2018"]
[White "Dubrovin, Robert"]
[Black "Rechlis, Gad"]
[Site "St. Petersburg"]
[Round "10.93"]
[Annotator "ChessBase"]
[Result "0-1"]
[Date "2018.12.27"]
[WhiteElo "2220"]
[BlackElo "2521"]
[PlyCount "68"]
[TimeControl "900+10"]

1. d4 {[%emt 0:0:0]} Nf6 {[%emt 0:0:0]} 2. c4 {[%emt 0:0:0]} e6 {[%emt 0:0:0]} 3. Nf3 {[%emt 0:0:6]} c5 {[%emt 0:0:0]} 4. d5 {[%emt 0:0:2]} exd5 {[%emt 0:0:0]} 5. cxd5 {[%emt 0:0:1]} d6 {[%emt 0:0:0]} 6. Nc3 {[%emt 0:0:0]} g6 {[%emt 0:0:0]} 7. Nd2 {[%emt 0:0:1]} Nbd7 {[%emt 0:0:9]} 8. e4 {[%emt 0:0:3]} Bg7 {[%emt 0:0:1]} 9. Be2 {[%emt 0:0:2]} 0-0 {[%emt 0:0:0]} 10. 0-0 {[%emt 0:0:1]} Re8 {[%emt 0:0:1]} 11. f4 {[%emt 0:0:5]} c4 {[%emt 0:0:15]
} 12. Kh1 {[%emt 0:0:39]} Nc5 {[%emt 0:1:5]} 13. e5 {[%emt 0:0:0]} dxe5 {[%emt 0:0:1]} 14. fxe5 {[%emt 0:0:1]} Rxe5 {[%emt 0:0:23]} 15. Nxc4 {[%emt 0:0:1]} Rf5 {[%emt 0:0:4]} 16. Bf4 {[%emt 0:0:21]} Nfe4 {[%emt 0:8:17]
} 17. Nxe4 {[%emt 0:2:20]} Nxe4 {[%emt 0:0:2]} 18. Ne3 {[%emt 0:0:53]
} Bxb2 {[%emt 0:1:5]} 19. Nxf5 {[%emt 0:1:44]} Bxf5 {[%emt 0:0:0]} 20. Bf3 {[%emt 0:3:12]} Qb6 {[%emt 0:3:9]} 21. Bxe4 {[%emt 0:4:29]} Bxe4 {[%emt 0:0:2]} 22. d6 {[%emt 0:0:16]} Qc6 {[%emt 0:0:38]} 23. Qd2 {[%emt 0:0:20]
} Bc3 {[%emt 0:0:5]} 24. Qf2 {[%emt 0:0:16]} Bxa1 {[%emt 0:0:0]} 25. Rxa1 {[%emt 0:0:16]} Re8 {[%emt 0:0:20]} 26. Rd1 {[%emt 0:0:13]} Qd7 {[%emt 0:0:31]} 27. Rc1 {[%emt 0:1:52]} Bc6 {[%emt 0:0:13]} 28. Rf1 {[%emt 0:0:44]
} Re6 {[%emt 0:0:38]} 29. Rc1 {[%emt 0:1:35]} Qe8 {[%emt 0:0:0]} 30. Qh4 {[%emt 0:0:10]} Re2 31. Rg1 Qe4 {[%emt 0:0:52]} 32. Qg3 {[%emt 0:0:21]
} Rxg2 {[%emt 0:0:12]} 33. Qxg2 {[%emt 0:0:11]} Qxf4 {[%emt 0:0:0]} 34. Rd1 {[%emt 0:0:3]} Bxg2+ {[%emt 0:0:3]} 0-1

[Event "FIDE World Rapid-ch Open 2018"]
[White "Perdomo, Carlos Andres"]
[Black "Mikhalevski, Victor"]
[Site "St. Petersburg"]
[Round "10.94"]
[Annotator "ChessBase"]
[Result "0-1"]
[Date "2018.12.27"]
[WhiteElo "2301"]
[BlackElo "2579"]
[PlyCount "58"]
[TimeControl "900+10"]

1. c4 {[%emt 0:0:0]} Nf6 {[%emt 0:0:0]} 2. Nc3 {[%emt 0:0:3]} d5 {[%emt 0:0:0]
} 3. d4 {[%emt 0:0:36]} g6 {[%emt 0:0:5]} 4. Nf3 {[%emt 0:0:0]} Bg7 {[%emt 0:0:2]} 5. Qb3 {[%emt 0:0:47]} dxc4 {[%emt 0:0:11]} 6. Qxc4 {[%emt 0:0:2]} 0-0 {[%emt 0:0:1]} 7. e4 {[%emt 0:0:23]} Nc6 {[%emt 0:0:0]} 8. h3 {[%emt 0:0:35]} e5 {[%emt 0:0:51]} 9. d5 {[%emt 0:1:38]} Nd4 {[%emt 0:0:3]
} 10. Bd3 {[%emt 0:0:37]} Nxf3+ {[%emt 0:0:16]} 11. gxf3 {[%emt 0:0:3]
} Nh5 {[%emt 0:0:2]} 12. Be3 {[%emt 0:0:43]} c6 {[%emt 0:0:0]} 13. 0-0-0 {[%emt 0:3:0]} Nf4 {[%emt 0:0:48]} 14. Bc2 {[%emt 0:3:41]} cxd5 {[%emt 0:0:9]} 15. exd5 {[%emt 0:0:1]} Bd7 {[%emt 0:0:35]} 16. h4 {[%emt 0:1:0]
} b5 {[%emt 0:0:35]} 17. Qb3 {[%emt 0:1:2]} a5 {[%emt 0:1:32]
} 18. Kb1 {[%emt 0:0:46]} Rc8 {[%emt 0:0:36]} 19. Nxb5 {[%emt 0:1:4]} a4 {[%emt 0:0:25]
} 20. Qb4 {[%emt 0:0:25]} Rxc2 {[%emt 0:1:9]} 21. Kxc2 {[%emt 0:0:4]
} Bf5+ {[%emt 0:1:3]} 22. Kc1 {[%emt 0:0:10]} Qb8 {[%emt 0:0:0]} 23. b3 {[%emt 0:1:25]} Rc8+ {[%emt 0:1:41]} 24. Kb2 {[%emt 0:0:13]} Nd3+ {[%emt 0:0:55]} 25. Rxd3 {[%emt 0:0:1]} Bxd3 {[%emt 0:0:2]} 26. bxa4 {[%emt 0:0:7]} e4+ {[%emt 0:0:42]} 27. Bd4 {[%emt 0:0:16]} Rc4 {[%emt 0:0:0]} 28. Qb3 {[%emt 0:0:32]} Rxd4 {[%emt 0:0:7]} 29. Nxd4 {[%emt 0:0:4]} Bxd4+ {[%emt 0:0:2]} 0-1

[Event "FIDE World Rapid-ch Open 2018"]
[White "Sokolov, Andrei"]
[Black "Gurvich, Vitaly"]
[Site "St. Petersburg"]
[Round "10.95"]
[Annotator "ChessBase"]
[Result "1/2-1/2"]
[Date "2018.12.27"]
[WhiteElo "2532"]
[BlackElo "2270"]
[PlyCount "134"]
[TimeControl "900+10"]

1. c4 {[%emt 0:0:0]} Nf6 {[%emt 0:0:0]} 2. Nc3 {[%emt 0:0:0]} e6 {[%emt 0:0:1]
} 3. Nf3 {[%emt 0:0:0]} Bb4 {[%emt 0:0:7]} 4. Qc2 {[%emt 0:0:0]} 0-0 {[%emt 0:0:6]} 5. a3 {[%emt 0:0:7]} Bxc3 {[%emt 0:0:5]} 6. Qxc3 {[%emt 0:0:1]} a5 {[%emt 0:0:20]} 7. e3 {[%emt 0:1:19]} d6 {[%emt 0:0:0]} 8. b3 {[%emt 0:0:15]} b6 {[%emt 0:0:9]} 9. Be2 {[%emt 0:0:2]} Bb7 {[%emt 0:0:1]} 10. 0-0 {[%emt 0:0:2]} Nbd7 {[%emt 0:0:6]} 11. d3 {[%emt 0:0:8]
} c5 {[%emt 0:1:27]} 12. Bb2 {[%emt 0:0:14]} Qe7 {[%emt 0:0:0]} 13. b4 {[%emt 0:0:12]} e5 {[%emt 0:0:15]} 14. Rfe1 {[%emt 0:1:2]} Rfe8 {[%emt 0:0:44]} 15. Nd2 {[%emt 0:0:47]} h6 {[%emt 0:0:24]} 16. Bf3 {[%emt 0:0:0]} Bxf3 {[%emt 0:0:15]} 17. Nxf3 {[%emt 0:0:1]} Nf8 {[%emt 0:0:46]} 18. bxc5 {[%emt 0:1:56]} bxc5 {[%emt 0:0:5]} 19. a4 {[%emt 0:0:4]} Qb7 {[%emt 0:1:10]
} 20. Rab1 {[%emt 0:0:54]} Qc6 {[%emt 0:0:38]} 21. Qc2 {[%emt 0:0:4]
} e4 {[%emt 0:2:2]} 22. Nd2 {[%emt 0:0:9]} exd3 {[%emt 0:0:0]} 23. Qxd3 {[%emt 0:0:0]} Ne4 {[%emt 0:0:45]} 24. Nxe4 {[%emt 0:0:8]} Qxe4 {[%emt 0:0:28]} 25. Qc3 {[%emt 0:1:35]} Ne6 {[%emt 0:0:29]} 26. Ba1 {[%emt 0:0:34]
} Reb8 {[%emt 0:0:26]} 27. Rb5 {[%emt 0:0:16]} Rxb5 {[%emt 0:0:0]} 28. axb5 {[%emt 0:0:1]} d5 {[%emt 0:0:3]} 29. cxd5 {[%emt 0:2:39]} Qxd5 {[%emt 0:0:2]} 30. h3 {[%emt 0:0:29]} a4 {[%emt 0:0:21]} 31. b6 {[%emt 0:1:27]
} Rb8 {[%emt 0:1:19]} 32. Rb1 {[%emt 0:0:31]} Qa2 {[%emt 0:0:0]} 33. Rb5 {[%emt 0:1:14]} Qe2 {[%emt 0:1:15]} 34. Rb1 {[%emt 0:1:49]} Qa6 {[%emt 0:1:24]} 35. f4 {[%emt 0:0:8]} Rxb6 {[%emt 0:1:12]} 36. Rxb6 {[%emt 0:0:1]
} Qxb6 {[%emt 0:0:2]} 37. f5 {[%emt 0:0:0]} Qb1+ {[%emt 0:0:0]} 38. Kh2 {[%emt 0:0:12]} Qxf5 {[%emt 0:0:2]} 39. Qc4 {[%emt 0:0:1]} a3 {[%emt 0:0:37]} 40. Qa6 {[%emt 0:0:0]} Qe4 {[%emt 0:0:33]} 41. Qxa3 {[%emt 0:0:4]
} c4 {[%emt 0:0:13]} 42. Qa6 {[%emt 0:0:44]} Qd5 {[%emt 0:0:0]} 43. Qa3 {[%emt 0:0:15]} h5 {[%emt 0:0:12]} 44. Qc3 {[%emt 0:0:1]} Qd6+ {[%emt 0:0:1]} 45. Kg1 {[%emt 0:0:12]} Qd1+ {[%emt 0:0:2]} 46. Kf2 {[%emt 0:0:7]
} Qd5 {[%emt 0:0:18]} 47. Qe5 {[%emt 0:0:26]} Qxe5 {[%emt 0:0:0]} 48. Bxe5 {[%emt 0:0:1]} f6 {[%emt 0:0:1]} 49. Ba1 {[%emt 0:0:14]} Kf7 {[%emt 0:0:4]} 50. e4 {[%emt 0:0:3]} Nf4 {[%emt 0:0:8]} 51. Kf3 {[%emt 0:0:0]} Nd3 {[%emt 0:0:5]} 52. Ke3 {[%emt 0:0:10]} g5 {[%emt 0:0:6]} 53. Bc3 {[%emt 0:0:29]} Ke6 {[%emt 0:0:7]} 54. g3 {[%emt 0:0:13]} Ne5 {[%emt 0:0:0]} 55. Kd4 {[%emt 0:0:24]} Kf7 {[%emt 0:0:19]} 56. Kd5 {[%emt 0:0:9]} Nf3 {[%emt 0:0:10]} 57. Kxc4 {[%emt 0:0:9]} Ng1 {[%emt 0:0:1]} 58. h4 {[%emt 0:0:28]
} gxh4 {[%emt 0:0:10]} 59. gxh4 {[%emt 0:0:1]} Nf3 {[%emt 0:0:0]} 60. Kd5 {[%emt 0:0:17]} Nxh4 61. e5 {[%emt 0:0:1]} fxe5 {[%emt 0:0:0]} 62. Kxe5 {[%emt 0:0:7]} Kg6 {[%emt 0:0:3]} 63. Kf4 {[%emt 0:0:3]} Ng2+ {[%emt 0:0:1]} 64. Kf3 {[%emt 0:0:5]} Nh4+ {[%emt 0:0:1]} 65. Kf4 {[%emt 0:0:0]
} Nf5 {[%emt 0:0:1]} 66. Be1 {[%emt 0:0:6]} h4 {[%emt 0:0:0]} 67. Bxh4 {[%emt 0:0:1]} Nxh4 1/2-1/2

[Event "FIDE World Rapid-ch Open 2018"]
[White "Bilguun, Sumiya"]
[Black "Al Thebaiti, Ahmed M"]
[Site "St. Petersburg"]
[Round "10.96"]
[Annotator "ChessBase"]
[Result "1-0"]
[Date "2018.12.27"]
[WhiteElo "2497"]
[BlackElo "1976"]
[PlyCount "49"]
[TimeControl "900+10"]

1. e4 {[%emt 0:0:0]} c6 {[%emt 0:0:0]} 2. Nf3 {[%emt 0:0:0]} d5 {[%emt 0:0:0]} 3. Nc3 {[%emt 0:0:0]} dxe4 {[%emt 0:0:3]} 4. Nxe4 {[%emt 0:0:1]} Nf6 {[%emt 0:0:3]} 5. Ng3 {[%emt 0:0:5]} h5 {[%emt 0:0:7]} 6. h4 {[%emt 0:0:20]
} Bg4 {[%emt 0:0:16]} 7. Be2 {[%emt 0:0:3]} e6 {[%emt 0:0:1]
} 8. Ng5 {[%emt 0:0:32]} Bd6 {[%emt 0:0:33]} 9. N3e4 {[%emt 0:0:7]} Nxe4 {[%emt 0:0:12]
} 10. Nxe4 {[%emt 0:0:3]} Be7 {[%emt 0:0:12]} 11. Bxg4 {[%emt 0:0:7]
} hxg4 {[%emt 0:0:3]} 12. Qxg4 {[%emt 0:0:6]} Rxh4 {[%emt 0:0:0]} 13. Rxh4 {[%emt 0:0:13]} Bxh4 {[%emt 0:0:3]} 14. Qxg7 {[%emt 0:0:0]} Be7 {[%emt 0:1:21]} 15. Qg8+ {[%emt 0:0:48]} Bf8 {[%emt 0:0:37]} 16. d3 {[%emt 0:0:12]} Na6 {[%emt 0:0:41]} 17. Bg5 {[%emt 0:0:14]} Qa5+ {[%emt 0:0:0]} 18. c3 {[%emt 0:0:9]} Qe5 {[%emt 0:2:47]} 19. f4 {[%emt 0:0:25]} Qa5 {[%emt 0:3:0]} 20. Nf6+ {[%emt 0:0:40]} Ke7 {[%emt 0:0:16]} 21. Nh7+ {[%emt 0:1:20]
} Kd6 {[%emt 0:0:29]} 22. Nxf8 {[%emt 0:0:18]} Nc5 {[%emt 0:0:0]} 23. Qxf7 {[%emt 0:0:38]} Nxd3+ {[%emt 0:0:47]} 24. Ke2 {[%emt 0:1:2]} Nxb2 {[%emt 0:0:56]} 25. Be7+ {[%emt 0:0:19]} 1-0

[Event "FIDE World Rapid-ch Open 2018"]
[White "Chen, Qi b"]
[Black "Guimaraes, Diogo Duarte"]
[Site "St. Petersburg"]
[Round "10.97"]
[Annotator "NA"]
[Result "1-0"]
[Date "2018.12.27"]
[WhiteElo "2437"]
[BlackElo "2278"]
[PlyCount "157"]
[TimeControl "900+10"]

1. e4 {[%emt 0:0:0]} e5 {[%emt 0:1:55]} 2. Nf3 {[%emt 0:0:0]} Nc6 {[%emt 0:0:1]
} 3. Bb5 {[%emt 0:0:0]} Nf6 {[%emt 0:0:2]} 4. 0-0 {[%emt 0:0:0]} Bc5 {[%emt 0:0:1]} 5. Bxc6 {[%emt 0:1:1]} dxc6 {[%emt 0:0:47]} 6. d3 {[%emt 0:0:21]} Bd6 {[%emt 0:0:21]} 7. Nbd2 {[%emt 0:0:5]} Be6 {[%emt 0:0:0]} 8. Nb3 {[%emt 0:1:5]} 0-0 {[%emt 0:0:11]} 9. Ng5 {[%emt 0:0:56]} Bd7 {[%emt 0:0:12]} 10. h3 a5 {[%emt 0:0:24]} 11. a4 {[%emt 0:2:19]} h6 {[%emt 0:0:22]
} 12. Nf3 {[%emt 0:0:1]} Be6 {[%emt 0:0:0]} 13. Nbd2 {[%emt 0:0:10]
} Nd7 {[%emt 0:0:23]} 14. b3 {[%emt 0:0:6]} f6 {[%emt 0:0:48]
} 15. Nc4 {[%emt 0:0:39]} Nb6 {[%emt 0:0:27]} 16. Ne3 {[%emt 0:0:29]} Nc8 {[%emt 0:0:17]
} 17. Nh4 {[%emt 0:2:27]} Ne7 {[%emt 0:0:2]} 18. Bd2 {[%emt 0:0:0]} Kh7 {[%emt 0:0:7]} 19. Qe2 {[%emt 0:0:30]} Qd7 {[%emt 0:0:13]} 20. Nc4 {[%emt 0:0:16]} b6 {[%emt 0:0:18]} 21. Nf3 {[%emt 0:0:9]} Bc5 {[%emt 0:0:0]} 22. Be3 {[%emt 0:0:18]} Bxe3 {[%emt 0:0:4]} 23. fxe3 {[%emt 0:0:7]
} Ng6 {[%emt 0:0:38]} 24. Qf2 {[%emt 0:0:29]} c5 {[%emt 0:0:39]} 25. Qg3 {[%emt 0:0:12]
} Qe8 {[%emt 0:1:5]} 26. Ncd2 {[%emt 0:0:14]} Ne7 {[%emt 0:0:0]} 27. Nh4 {[%emt 0:0:10]} Qh5 {[%emt 0:0:30]} 28. Rf2 {[%emt 0:0:11]} Qg5 {[%emt 0:0:21]} 29. Kh2 {[%emt 0:0:22]} Nc6 {[%emt 0:0:21]} 30. Qxg5 {[%emt 0:1:3]
} hxg5 {[%emt 0:0:1]} 31. Nhf3 {[%emt 0:0:2]} g4 {[%emt 0:0:0]} 32. hxg4 {[%emt 0:0:16]} Bxg4 {[%emt 0:0:2]} 33. Kg3 {[%emt 0:0:5]} Be6 {[%emt 0:0:24]} 34. Rh1+ {[%emt 0:0:30]} Kg6 {[%emt 0:0:3]} 35. Nb1 {[%emt 0:0:41]
} Rh8 {[%emt 0:0:8]} 36. Rff1 {[%emt 0:0:1]} Nb4 {[%emt 0:0:0]} 37. Na3 {[%emt 0:0:5]} Rad8 {[%emt 0:1:10]} 38. Rxh8 {[%emt 0:0:31]} Rxh8 {[%emt 0:0:1]} 39. d4 {[%emt 0:0:6]} cxd4 {[%emt 0:1:13]} 40. exd4 {[%emt 0:0:1]
} exd4 {[%emt 0:0:1]} 41. Nxd4 {[%emt 0:0:2]} Bc8 {[%emt 0:0:0]} 42. Ndb5 {[%emt 0:0:25]} Re8 {[%emt 0:0:17]} 43. Re1 {[%emt 0:0:40]} Re7 {[%emt 0:0:8]} 44. Kf4 {[%emt 0:0:14]} Bb7 {[%emt 0:0:8]} 45. g4 {[%emt 0:0:9]
} Kf7 {[%emt 0:0:20]} 46. Kf3 {[%emt 0:0:22]} g6 {[%emt 0:0:0]} 47. Kf4 {[%emt 0:0:1]} g5+ {[%emt 0:0:27]} 48. Kf3 {[%emt 0:0:1]} Rd7 {[%emt 0:0:26]} 49. Ke3 {[%emt 0:0:26]} c6 {[%emt 0:0:19]} 50. Nd4 {[%emt 0:0:0]} Re7 {[%emt 0:0:42]} 51. Nf5 {[%emt 0:0:2]} Re6 {[%emt 0:0:9]} 52. Rd1 {[%emt 0:0:8]} Bc8 {[%emt 0:0:9]} 53. Nd6+ {[%emt 0:0:5]} Rxd6 {[%emt 0:0:3]
} 54. Rxd6 {[%emt 0:0:2]} Bxg4 {[%emt 0:0:1]} 55. Rd8 {[%emt 0:0:27]
} f5 {[%emt 0:0:10]} 56. c3 {[%emt 0:0:16]} f4+ {[%emt 0:0:19]
} 57. Kf2 {[%emt 0:0:1]} Na6 {[%emt 0:0:8]} 58. Nc4 {[%emt 0:0:7]} Ke7 {[%emt 0:0:26]
} 59. Rg8 {[%emt 0:0:9]} Nc5 {[%emt 0:0:1]} 60. Nd2 {[%emt 0:0:0]} Kf6 {[%emt 0:0:8]} 61. Rb8 {[%emt 0:0:16]} Nd7 {[%emt 0:0:12]} 62. Rb7 {[%emt 0:0:17]} Be6 {[%emt 0:0:4]} 63. b4 {[%emt 0:0:3]} g4 {[%emt 0:0:0]} 64. bxa5 {[%emt 0:0:5]} bxa5 {[%emt 0:0:1]} 65. Ra7 {[%emt 0:0:1]
} Ne5 {[%emt 0:0:48]} 66. Rxa5 {[%emt 0:0:6]} Nd3+ {[%emt 0:0:41]} 67. Kg2 {[%emt 0:0:7]} Ne1+ {[%emt 0:0:15]} 68. Kf1 {[%emt 0:0:5]} Nd3 {[%emt 0:0:0]} 69. Ra6 {[%emt 0:0:45]} Bd7 {[%emt 0:0:28]} 70. Ra7 {[%emt 0:0:5]} Be6 {[%emt 0:0:14]} 71. a5 {[%emt 0:0:9]} f3 {[%emt 0:0:9]} 72. a6 {[%emt 0:0:4]
} Nc5 {[%emt 0:0:18]} 73. Kf2 {[%emt 0:0:11]} Ke5 {[%emt 0:0:0]} 74. Kg3 {[%emt 0:0:5]} Nb3 {[%emt 0:0:17]} 75. Nxb3 {[%emt 0:0:10]} Bxb3 {[%emt 0:0:1]} 76. Re7+ {[%emt 0:0:9]} Kd6 {[%emt 0:0:0]} 77. Rb7 {[%emt 0:0:6]
} f2 {[%emt 0:0:5]} 78. Kxf2 {[%emt 0:0:2]} Bc2 {[%emt 0:0:0]} 79. a7 {[%emt 0:0:2] Kd5} 1-0

[Event "FIDE World Rapid-ch Open 2018"]
[White "Yeritsyan, Aram"]
[Black "Ahmed Hassan Abdillahi"]
[Site "St. Petersburg"]
[Round "10.98"]
[Annotator "NA"]
[Result "1-0"]
[Date "2018.12.27"]
[WhiteElo "2372"]
[BlackElo "1570"]
[PlyCount "87"]
[TimeControl "900+10"]

1. e4 {[%emt 0:0:0]} c5 {[%emt 0:0:0]} 2. Nf3 {[%emt 0:0:0]} g6 {[%emt 0:0:0]} 3. d4 {[%emt 0:0:0]} cxd4 {[%emt 0:0:6]} 4. Nxd4 {[%emt 0:0:0]} Nc6 {[%emt 0:0:3]} 5. c4 {[%emt 0:0:2]} Bg7 {[%emt 0:0:2]} 6. Be3 {[%emt 0:0:0]
} Nf6 {[%emt 0:0:12]} 7. Nc3 {[%emt 0:0:2]} Qa5 {[%emt 0:0:0]} 8. f3 {[%emt 0:0:20]} 0-0 {[%emt 0:0:22]} 9. Qd2 {[%emt 0:0:4]} d6 {[%emt 0:0:38]
} 10. Be2 {[%emt 0:0:2]} Bd7 {[%emt 0:0:18]} 11. 0-0 {[%emt 0:0:0]} Rac8 {[%emt 0:0:7]} 12. Rfd1 {[%emt 0:0:8]} Ne5 {[%emt 0:0:7]} 13. Nd5 {[%emt 0:0:29]} Qxd2 {[%emt 0:0:37]} 14. Nxe7+ {[%emt 0:0:3]} Kh8 {[%emt 0:0:3]
} 15. Rxd2 {[%emt 0:0:20]} Nxc4 {[%emt 0:0:58]} 16. Nxc8 {[%emt 0:0:4]
} Nxd2 {[%emt 0:0:29]} 17. Nxd6 {[%emt 0:0:33]} b5 {[%emt 0:0:0]} 18. Bxd2 {[%emt 0:0:11]} Ne8 {[%emt 0:0:31]} 19. N4xb5 {[%emt 0:0:14]} Nxd6 {[%emt 0:0:11]} 20. Nxd6 {[%emt 0:0:2]} Bxb2 {[%emt 0:0:10]} 21. Rb1 {[%emt 0:0:1]
} Bd4+ {[%emt 0:0:2]} 22. Kf1 {[%emt 0:0:1]} Be6 {[%emt 0:0:0]} 23. Bc4 {[%emt 0:0:5]} Bxc4+ {[%emt 0:0:14]} 24. Nxc4 {[%emt 0:0:2]} Rc8 {[%emt 0:0:1]} 25. Nd6 {[%emt 0:0:33]} Rc2 {[%emt 0:0:14]} 26. Rb8+ {[%emt 0:0:8]
} Kg7 {[%emt 0:0:11]} 27. Ne8+ {[%emt 0:0:2]} Kf8 {[%emt 0:0:0]} 28. Bb4+ {[%emt 0:0:14]} Bc5 {[%emt 0:0:7]} 29. Bxc5+ {[%emt 0:0:53]} Rxc5 {[%emt 0:0:3]} 30. Kf2 {[%emt 0:0:14]} Rc2+ {[%emt 0:0:13]} 31. Kg3 {[%emt 0:0:1]
} Rxa2 {[%emt 0:0:1]} 32. e5 {[%emt 0:0:2]} Ke7 {[%emt 0:0:0]} 33. Nf6 {[%emt 0:0:3]} Ke6 {[%emt 0:0:6]} 34. Kf4 {[%emt 0:0:7]} Ra4+ {[%emt 0:0:1]} 35. Ne4 {[%emt 0:0:2]} Ra2 {[%emt 0:0:19]} 36. Ng5+ {[%emt 0:0:35]
} Kd5 {[%emt 0:0:16]} 37. Rd8+ {[%emt 0:0:2]} Kc5 {[%emt 0:0:0]} 38. Nxf7 {[%emt 0:0:6]} Rxg2 {[%emt 0:0:4]} 39. e6 {[%emt 0:0:4]} Re2 {[%emt 0:0:20]} 40. Ne5 {[%emt 0:0:2]} g5+ {[%emt 0:0:12]} 41. Kf5 {[%emt 0:0:2]
} g4 42. e7 {[%emt 0:0:6]} gxf3 {[%emt 0:0:14]} 43. e8=Q {[%emt 0:0:3]
} f2 {[%emt 0:0:1]} 44. Qc6+ {[%emt 0:0:19] Kd5} 1-0

[Event "FIDE World Rapid-ch Open 2018"]
[White "Masrahi, Abdulrahman A"]
[Black "Alsulaymi, Abdullah M"]
[Site "St. Petersburg"]
[Round "10.99"]
[Annotator "NA"]
[Result "1-0"]
[Date "2018.12.27"]
[WhiteElo "1903"]
[BlackElo "1833"]
[PlyCount "119"]
[TimeControl "900+10"]

1. d4 {[%emt 0:0:0]} c5 {[%emt 0:0:0]} 2. d5 {[%emt 0:0:0]} Nf6 {[%emt 0:0:0]} 3. Nc3 {[%emt 0:0:0]} d6 {[%emt 0:0:14]} 4. e4 {[%emt 0:0:1]} g6 {[%emt 0:0:23]
} 5. Nf3 {[%emt 0:0:4]} Bg7 {[%emt 0:0:3]} 6. Be2 {[%emt 0:0:0]} 0-0 {[%emt 0:0:3]} 7. 0-0 {[%emt 0:0:3]} Nbd7 {[%emt 0:0:3]} 8. Bf4 {[%emt 0:0:9]} Nh5 {[%emt 0:0:5]} 9. Be3 {[%emt 0:0:9]} a6 {[%emt 0:0:0]} 10. a4 {[%emt 0:0:2]} Qb6 {[%emt 0:0:8]} 11. Qc1 {[%emt 0:1:40]} Ne5 {[%emt 0:1:44]} 12. Nxe5 {[%emt 0:0:9]} Bxe5 {[%emt 0:0:3]} 13. Bxh5 {[%emt 0:0:12]
} gxh5 {[%emt 0:0:2]} 14. f4 {[%emt 0:2:52]} Bf6 {[%emt 0:0:0]} 15. e5 {[%emt 0:2:13]} Bg7 {[%emt 0:1:50]} 16. a5 {[%emt 0:0:40]} Qd8 {[%emt 0:0:28]
} 17. Ra4 {[%emt 0:0:29]} Bd7 {[%emt 0:0:33]} 18. Ra3 {[%emt 0:0:0]} Rc8 {[%emt 0:0:11]} 19. Qe1 {[%emt 0:1:13]} dxe5 {[%emt 0:0:58]} 20. fxe5 {[%emt 0:0:3]} Bxe5 {[%emt 0:0:15]} 21. Bh6 {[%emt 0:0:31]} Bd4+ {[%emt 0:1:6]
} 22. Kh1 {[%emt 0:0:12]} Re8 {[%emt 0:1:34]} 23. Qg3+ {[%emt 0:1:21]
} Kh8 {[%emt 0:0:2]} 24. Rxf7 {[%emt 0:0:4]} Rg8 {[%emt 0:0:0]} 25. Qd3 {[%emt 0:0:16]} Bg7 {[%emt 0:0:36]} 26. Ra1 {[%emt 0:1:3]} Be8 {[%emt 0:0:5]} 27. Bxg7+ {[%emt 0:0:42]} Rxg7 {[%emt 0:0:3]} 28. Rf8+ {[%emt 0:0:5]
} Rg8 {[%emt 0:0:14]} 29. Raf1 {[%emt 0:0:38]} Qd6 {[%emt 0:0:0]} 30. Ne4 {[%emt 0:3:24]} Qg6 {[%emt 0:0:2]} 31. Qc3+ {[%emt 0:0:38]} Qg7 {[%emt 0:0:1]} 32. Rxg8+ {[%emt 0:0:31]} Kxg8 {[%emt 0:0:2]} 33. Qxg7+ {[%emt 0:0:2]} Kxg7 {[%emt 0:0:2]} 34. d6 {[%emt 0:0:1]} Bc6 {[%emt 0:0:0]} 35. Nxc5 {[%emt 0:0:26]} exd6 {[%emt 0:0:4]} 36. Ne6+ {[%emt 0:0:4]} Kg8 {[%emt 0:0:25]} 37. h4 {[%emt 0:0:8]} Bd7 {[%emt 0:0:54]} 38. Nd4 {[%emt 0:0:3]
} Rc4 {[%emt 0:0:22]} 39. c3 {[%emt 0:0:1]} Ra4 {[%emt 0:0:0]} 40. b4 {[%emt 0:0:18]} Ra3 {[%emt 0:1:17]} 41. Rf3 {[%emt 0:0:11]} Bg4 {[%emt 0:0:8]} 42. Rd3 {[%emt 0:0:19]} Kf7 {[%emt 0:0:9]} 43. Kh2 {[%emt 0:0:2]
} Kf6 {[%emt 0:0:37]} 44. Nc2 {[%emt 0:0:11]} Ra2 {[%emt 0:0:0]} 45. Ne3 {[%emt 0:0:6]} Ke5 {[%emt 0:0:11]} 46. Nc4+ {[%emt 0:0:19]} Ke4 {[%emt 0:0:32]} 47. Rd4+ {[%emt 0:0:6]} Kf5 {[%emt 0:0:7]} 48. Nxd6+ {[%emt 0:0:5]
} Ke5 {[%emt 0:0:11]} 49. Nc4+ {[%emt 0:0:11]} Kf5 {[%emt 0:0:0]} 50. Kg3 {[%emt 0:0:9]} Be2 {[%emt 0:0:10]} 51. Nd6+ {[%emt 0:0:23]} Ke5 {[%emt 0:0:3]} 52. Nc4+ {[%emt 0:0:4]} Bxc4 {[%emt 0:0:4]} 53. Rxc4 {[%emt 0:0:2]
} Kf6 {[%emt 0:0:23]} 54. Rc5 {[%emt 0:0:22]} Kg6 {[%emt 0:0:0]} 55. Rg5+ {[%emt 0:0:7]} Kh6 {[%emt 0:0:8]} 56. Rc5 {[%emt 0:0:1]} Rd2 {[%emt 0:0:19]} 57. Rc7 {[%emt 0:0:3]} Kg6 {[%emt 0:0:12]} 58. Rxb7 {[%emt 0:0:5]
} Rd3+ {[%emt 0:0:1]} 59. Kf2 {[%emt 0:0:15]} Rd6 {[%emt 0:0:0]} 60. Rb6 {[%emt 0:0:3]} 1-0